Cogmind - Beta 10 @@@ ROGUE MODE // 2020.09.18 @ 19:26:43 Player: cavemonk Result: Destroyed by D-53 Grenadier with Mini Grenade Launcher Performance ------------- Evolutions (0) 0 Regions Visited (2) 400 Robots Destroyed (36) 180 Value Destroyed (528) 528 Prototype IDs (0) 0 Alien Tech Used (0) 0 Bonus (0) 0 TOTAL SCORE: 1108 Bonus ------- None Cogmind --------- Core Integrity 0/250 Matter 300/300 Energy 99/100 System Corruption 0% Temperature Cool (0) Movement Rolling (110) Ox3 Location -10/Mines Parts ------- > --- POWER (1) -------- (None) > --- PROPULSION (2) --- Wheel > --- UTILITY (2) ------ Large Storage Unit Large Storage Unit > --- WEAPON (2) ------- (None) > --- INVENTORY (16) --- Light Treads Light Treads Light Treads Wheel Improved Heat Sink Terrain Scanner Improved Terrain Scanner Utility Shielding Beam Cannon Assault Rifle Assault Rifle Light Assault Rifle Light Cannon Hammer Mining Claw Peak State ------------ > --- POWER ------------ Ion Engine > --- PROPULSION ------- Light Treads Wheel > --- UTILITY ---------- Small Storage Unit Improved Terrain Scanner > --- WEAPON ----------- Medium Laser Assault Rifle > --- INVENTORY -------- Ion Engine Light Treads Wheel Wheel Wheel Compact Wheel [Rating: 8] Favorites ----------- Power Ion Engine Engine Ion Engine Propulsion Light Treads Treads Light Treads Wheel Wheel Utility Large Storage Unit Device Terrain Scanner Storage Large Storage Unit Weapon Assault Rifle Energy Gun Medium Laser Energy Cannon Beam Cannon Ballistic Gun Assault Rifle Ballistic Cannon Light Cannon Special Weapon Mining Laser Impact Weapon Hammer Slashing Weapon Mining Claw Build | -11 -10 -10 ------- Run | Scr Mat Min Slots Evolved . | . . . Power . | . . . Propulsion . | . . . Utility . | . . . Weapon . | . . . Parts Attached 52 | 14 31 7 Power 2 | 1 . 1 Engine 2 | 1 . 1 Core . | . . . Reactor . | . . . Propulsion 19 | 5 11 3 Treads 7 | 1 5 1 Leg . | . . . Wheel 12 | 4 6 2 Hover . | . . . Flight . | . . . Utility 6 | 3 3 . Device 2 | 1 1 . Storage 4 | 2 2 . Processor . | . . . Hackware . | . . . Protection . | . . . Artifact . | . . . Weapon 25 | 5 17 3 Energy Gun 2 | 2 . . Energy Cannon 1 | . 1 . Ballistic Gun 11 | 2 6 3 Ballistic Cannon 3 | . 3 . Launcher . | . . . Special Weapon 1 | 1 . . Impact Weapon 3 | . 3 . Slashing Weapon 4 | . 4 . Piercing Weapon . | . . . Special Melee Weapon . | . . . Unidentified Prototypes . | . . . Parts Lost 6 | . . 6 Power 2 | . . 2 Propulsion 2 | . . 2 Utility . | . . . Weapon 2 | . . 2 Highest Loss Streak 5 | . . 5 Average Slot Usage (%) 99 | . 99 97 Engine 14 | . 14 14 Treads 16 | . 15 22 Wheel 11 | . 12 4 Device 7 | . 8 . Storage 20 | . 18 28 Energy Cannon 1 | . 1 . Ballistic Gun 10 | . 7 26 Ballistic Cannon 1 | . 1 . Impact Weapon 5 | . 6 . Slashing Weapon 7 | . 9 . Naked Turns . | . . . Heaviest Build 43 | 14 43 41 Greatest Support 40 | 10 40 40 Greatest Overweight (x) 4 | 1 4 3 Average Overweight (x) 1 | . 2 . Largest Inventory Capacity 16 | 6 16 16 Average Capacity 10 | 5 12 16 Most Carried 16 | 6 16 16 Average Carried 9 | 5 11 15 Final Capacity 16 | 6 16 16 Final Carried 16 | 6 16 15 Class Distribution -------------------- 100% | Mutant Dominant Class ---------------- Mutant | -10/Materials Mutant | -10/Mines Resources | -11 -10 -10 ----------- Run | Scr Mat Min Matter Collected 893 | 399 406 88 Remotely . | . . . Salvage Created 951 | 258 546 147 Parts 65 | 20 34 11 Haulers Intercepted 1 | . 1 . Recyclers Shooed 2 | 1 1 . Parts Field Recycled . | . . . Retrieved Matter . | . . . Parts Self-Destructed . | . . . Prevented . | . . . Kills | -11 -10 -10 ------- Run | Scr Mat Min Combat Hostiles Destroyed 21 | . 15 6 Melee 4 | . 4 . Guns 15 | . 9 6 Cannons 2 | . 2 . Classes Destroyed 7 | 3 4 . Worker 1 | 1 . . Tunneler 9 | 9 . . Hauler 1 | . 1 . Recycler 3 | 1 2 . Operator 1 | . 1 . Swarmer 13 | . 9 4 Grunt 8 | . 6 2 Best Kill Streak 6 | 6 4 2 Combat Bots Only 4 | . 4 2 Max Kills in Single Turn 2 | 1 1 2 Gunslinging 1 | . . 1 Exploded . | . . . Melee 1 | . 1 . Uniques/NPCs Destroyed . | . . . Combat | -11 -10 -10 -------- Run | Scr Mat Min Damage Taken 1054 | . 419 635 Core 283 | . 73 210 Absorbed by Shields . | . . . Core Remaining (%) 100 | 100 . . Volleys Fired 73 | 27 26 20 Largest 2 | 2 2 2 Hottest 100 | 100 60 40 Shots Fired 128 | 47 41 40 Gun 111 | 41 30 40 Cannon 11 | . 11 . Launcher . | . . . Special 6 | 6 . . Kinetic 80 | 6 34 40 Thermal 48 | 41 7 . Explosive . | . . . Electromagnetic . | . . . Robot Hit Streak 11 | 7 11 4 Robot Miss Streak 3 | 3 3 2 Penetration Max . | . . . Secondary Targets 1 | . . 1 Max Gunslinging Chain 1 | . . 1 Shots Hit Robots 84 | 23 38 23 Core Hits 45 | 12 22 11 Critical Hits . | . . . Critical Kills . | . . . Critical Parts Destroyed . | . . . Melee Attacks 20 | . 20 . Impact 2 | . 2 . Slashing 18 | . 18 . Piercing . | . . . Sneak Attacks 3 | . 3 . Combat Hostiles . | . . . Follow-up Attacks . | . . . Damage Inflicted 1350 | 284 864 202 Guns 736 | 284 250 202 Cannons 141 | . 141 . Explosions . | . . . Melee 466 | . 466 . Ramming 7 | . 7 . Kinetic 548 | 42 304 202 Thermal 329 | 242 87 . Explosive . | . . . Electromagnetic . | . . . Impact . | . . . Slashing 466 | . 466 . Piercing . | . . . Highest Corruption . | . . . Average Corruption . | . . . Corruption Purged . | . . . Overload Shots . | . . . Overflow Damage 50 | . 50 . Projectiles . | . . . Explosions . | . . . Melee 50 | . 50 . Knockbacks . | . . . Impact . | . . . Kinetic . | . . . Secondary . | . . . Self-Inflicted Damage . | . . . Shots . | . . . Rammed 1 | . 1 . Targets Rammed 1 | . 1 . Kicked . | . . . Crushed . | . . . Highest Temperature 200 | 200 150 9 Average Temperature 49 | 49 66 7 Received Heat Transfer 228 | . 150 78 Siege Activations . | . . . Robots Corrupted . | . . . Combat Hostiles . | . . . Parts Fried . | . . . Impact Corruptions . | . . . Robots Melted . | . . . Combat Hostiles . | . . . Parts Melted 6 | 5 1 . Heat Transferred 841 | 656 185 . Parts Sabotaged . | . . . Parts Stolen . | . . . Parts Stripped . | . . . Power Chain Reactions . | . . . Missiles Intercepted . | . . . Alert | -11 -10 -10 ------- Run | Scr Mat Min Peak Influence 212 | 55 212 179 Initial 34 | . . 34 Average 52 | 15 70 92 Maximum Alert Level 1 | . 1 . Low Security (%) 99 | 100 98 100 Level 1 . | . 1 . Level 2 . | . . . Level 3 . | . . . Level 4 . | . . . Level 5 . | . . . High Security . | . . . Max Security . | . . . Squads Dispatched 3 | . 3 . Investigation 3 | . 3 . Extermination . | . . . Reinforcement . | . . . Assault . | . . . Garrison . | . . . Intercept . | . . . Construction Impeded . | . . . Haulers Reinforced . | . . . Stealth | -11 -10 -10 --------- Run | Scr Mat Min Distress Signals 1 | . 1 . Communications Jammed . | . . . Distress Signals . | . . . Times Spotted 37 | . 24 13 Peak Tracking Total 4 | . 4 4 Tactical Retreats 1 | . . 1 Traps | -11 -10 -10 ------- Run | Scr Mat Min Traps Triggered 3 | . 3 . Indirectly . | . . . Trap Hack Attempts . | . . . Triggered . | . . . Disarmed . | . . . Reprogrammed . | . . . Reused . | . . . Traps Extracted . | . . . Installed . | . . . Triggered . | . . . Machines | -11 -10 -10 ---------- Run | Scr Mat Min Machines Disabled . | . . . Max in Single Turn . | . . . Machines Sabotaged . | . . . Garrisons Compromised . | . . . Overloaded Fab Kills . | . . . Fab Network Shutdowns . | . . . Hacking | -11 -10 -10 --------- Run | Scr Mat Min Machines Accessed 10 | . 10 . Terminals 8 | . 8 . Fabricators . | . . . Repair Stations . | . . . Recycling Units 2 | . 2 . Scanalyzers . | . . . Garrison Access . | . . . Total Hacks 22 | . 22 . Successful 6 | . 6 . Failed 16 | . 16 . Catastrophic 2 | . 2 . Database Lockouts . | . . . Manual 17 | . 17 . Terminals 19 | . 19 . Fabricators . | . . . Repair Stations . | . . . Recycling Units 3 | . 3 . Scanalyzers . | . . . Garrison Access . | . . . Terminal Hacks 4 | . 4 . Terminal Index 1 | . 1 . Unreport Threat 1 | . 1 . Hauler Manifests 1 | . 1 . Zone Layout 1 | . 1 . Fabricator Hacks . | . . . Repair Station Hacks . | . . . Recycling Unit Hacks 2 | . 2 . Report Inventory 2 | . 2 . Scanalyzer . | . . . Garrison Access Hacks . | . . . Unauthorized Hacks . | . . . Terminals . | . . . Fabricators . | . . . Repair Stations . | . . . Recycling Units . | . . . Scanalyzers . | . . . Garrison Access . | . . . Data Cores Recovered 1 | . 1 . Used 1 | . 1 . Hacking Detections 9 | . 9 . Full Trace Events . | . . . Feedback Events . | . . . Feedback Blocked . | . . . Robot Schematics Acquired . | . . . Robots Built . | . . . Matter . | . . . Time . | . . . Total Robot Build Rating . | . . . Part Schematics Acquired . | . . . Parts Built . | . . . Matter . | . . . Time . | . . . Total Part Build Rating . | . . . Parts Repaired . | . . . Time . | . . . Parts Recycled . | . . . Recycled Matter . | . . . Retrieved Matter . | . . . Retrieved Components . | . . . Parts Scanalyzed . | . . . Part Schematics Acquired . | . . . Parts Damaged . | . . . Bothacking | -11 -10 -10 ------------ Run | Scr Mat Min Used RIF Installer . | . . . Robots Hacked . | . . . Non-combat . | . . . Combat . | . . . Robot Hacks Applied . | . . . Relay Couplers Released . | . . . Robots Rewired . | . . . Allies Hacked . | . . . Hacks Repelled . | . . . Allies | -11 -10 -10 -------- Run | Scr Mat Min Total Allies . | . . . Largest Group . | . . . Highest-Rated Group . | . . . Highest-Rated Ally . | . . . Total Orders . | . . . Ally Attacks . | . . . Total Damage . | . . . Kills . | . . . Allies Corrupted . | . . . Allies Melted . | . . . Intel | -11 -10 -10 ------- Run | Scr Mat Min Robot Analysis Total . | . . . Derelict Logs Recovered 1 | . . 1 Drone Launches . | . . . Drone Recoveries . | . . . Exploration | -11 -10 -10 ------------- Run | Scr Mat Min Turns Passed 2571 | 953 1362 256 Spaces Moved 985 | 247 631 107 Core 1 | 1 . . Treads 180 | . 84 96 Legs . | . . . Wheels 804 | 246 547 11 Hover . | . . . Flight . | . . . Fastest Speed 50 | 50 90 100 Average Speed 115 | 88 118 160 Slowest Speed 200 | 90 200 200 Overloaded Moves . | . . . Propulsion Burnouts . | . . . Robots Hopped . | . . . Cave-ins Triggered . | . . . Exploration Rate (%) 40 | 4 90 27 Regions Visited 2 Branch Regions 1 Pre-discovered Areas . | . . . Known Exits Taken . | . . . Unknown Exits Taken 2 | 1 1 . Scrap Searched . | . . . Spaces Dug 6 | 5 1 . Terrain Destroyed 6 | 5 1 . Melee 1 | . 1 . Projectile 5 | 5 . . AOE . | . . . Terrain Rammed . | . . . Walls Destroyed . | . . . Machines Disabled . | . . . Actions | -11 -10 -10 --------- Run | Scr Mat Min Total 2240 | 919 1163 158 Wait 1070 | 615 433 22 Move 983 | 246 630 107 Hop . | . . . Pick Up 23 | 10 12 1 Fast Attach 12 | 8 4 . Attach 5 | 2 1 2 Detach 4 | . 4 . Swap 35 | 4 26 5 Drop 16 | 7 8 1 Fire 73 | 27 26 20 Melee 18 | . 18 . Ram . | . . . Kick . | . . . Crush 1 | . 1 . Escape Stasis . | . . . Rewire . | . . . Trap . | . . . Miscellaneous . | . . . Route ------- -11/Scrapyard -10/Materials (discovered 4 exits: [*Mat x3] / [*Min]) -10/Mines (discovered 1 exit: [*Mat]) History --------- Turn | Location | Event 19 | -11/Scrapyard | Discovered new exit (range 16) 954 | -11/Scrapyard | Entered Materials 955 | -10/Materials | Build established: Mutant 1571 | -10/Materials | Discovered new exit (range 12) 1611 | -10/Materials | Discovered new exit (range 15) 1775 | -10/Materials | Discovered new exit (range 10) 2026 | -10/Materials | Discovered new exit (range 11) 2316 | -10/Materials | Entered Mines 2351 | -10/Mines | Discovered new exit (range 13) 2507 | -10/Mines | Learned 4 Materials zone layouts 2545 | -10/Mines | Assembled infested the area 2560 | -10/Mines | Core integrity fell below 50% 2566 | -10/Mines | Core integrity fell below 20% 2572 | -10/Mines | Destroyed by D-53 Grenadier with Mini Grenade Launcher Last Messages --------------- 02490_ Dropped Lgt. Assault Rifle. 02496_ Acquired 10 matter. 02502_ R-06 Scavenger collects Flight Unit. 02507_ Acquired derelict log, extracted data. Data stored: Materials zone layouts (x4). 02508_ R-06 Scavenger collects Lgt. Ion Engine. 02545_ ALERT: Infestation in the mines, dispatching Demolisher response squad. 02554_ S-10 Pest destroyed. 02559_ C-30 ARC bursts open, deploying its payload. 02559_ D-53 Grenadier unfolds itself. 02559_ Lgt. Treads destroyed. 02559_ S-10 Pest destroyed. 02560_ The unstable cave ceiling collapses. 02563_ Lgt. Assault Rifle destroyed. 02568_ The unstable cave ceiling collapses. 02569_ Com. Wheel destroyed. 02570_ The unstable cave ceiling collapses. 02571_ Ion Engine destroyed. 02572_ The unstable cave ceiling collapses. Map ----- +----------------------------------------------------+ | ????????????????????????????????????? | | ????????????????????????????????????? | | ????????????????????????????????????? | | ????????????????????????????????????? | | ????????????????????????????????????? | | ????????????????????????????????????? | | ????????????????????????????????????? | | ????????????????????????????????????? | | ????????????????????????????##??????? | | ???????????????????????????? %??????? | | ????????????????????????????#*#?????? | | ??????????????????????????###%#?????? | | ?????????????????????????## =###???? | | ?????????????????????????# $ % ##??? | | ?????????????????????????# ##?? | | ?????????????????????????# d #?? | | ?????????????????????????# #?? | | ?????????????????????????# d #?? | | ?????????????????????????# s #?? | | ?????????????????????????# # # ##? | | ?????????????????????????# #? | | ????????????????????????## #? | | ???????????????????????## #? | | ???????????????????????# ###? | | ???????????????????????# #??? | | ?????????????###???????# @ ##??? | | ??????????## ###???# #???? | | ? ?????????# ##??# #???? | | ??# ????????# #??### #######???? | | ???# ???????# ??## #########?? | | ???# ??????# #?## #?? | | ????# ??????# ### #?? | | ##??# ####### ## #?? | | #### % #### #####?????? | | #??######?????????? | | ### ######?????????????????? | | ##### ##??#[#??????????????????????? | | ##### #####%####???????????????????? | | # = #???????????????????? | | ## ##### #???????????????????? | | ## ##### """ #???????????????????? | | ?# % """ #???????????????????? | | ?####### """ #???????????????????? | | ???????# #???????????????????? | | ???????# """ #???????????????????? | | ???????# """ #???????????????????? | | ???????# """ #???????????????????? | | ???????# #???????????????????? | | ???????##########???????????????????? | | ????????????????????????????????????? | +----------------------------------------------------+ Best States ------------- Heat Dissipation 25 Energy Generation 10 Energy Capacity 250 Matter Stores 350 Matter Capacity 350 Sight Range 16 Terrain Scan Range 16 Terrain Scan Density 10 Evasion (%) 44 Recoil Reduction 2 Item Schematics ----------------- None Robot Schematics ------------------ None Fabricated ------------ Nothing Alien Tech Used ----------------- None Achievements -------------- None Challenges ------------ None Game ------ Seed AlphaAutogunPick Manual? 0 Play Time 00:28:44 Cumulative 116.5 hours Start 2020.09.18 @ 18:59:42 End 2020.09.18 @ 19:26:43 Sessions 1 Manual Loads 0 Difficulty Rogue Special Mode None Game No. 73 Rogue 73 Adventurer 0 Explorer 0 Win Type - Total 2 Types 2/0/0/0/0/0/0/0/0 Lore% 33 Gallery% 53 Achievement% 42 Wizard Run 0 Options --------- ASCII 0 Keyboard 0 Movement Mouse Keybinds 0 Fullscreen 2 Font 18/TerminusBold Map View 76x50 Tactical HUD 1 Map Filters NONE Filters NONE Steam 1 RUN: 7e6dc3c5-fe0a-45a7-9e73-62f7240b7b34